bitfinex/quotes_ETHUSD_20250222
["timestamp","ask_amount","ask_price","bid_price","bid_amount"]
[1740221802737,5.29029157,2733.9,2733.3,8.061918]
[1740221803041,5.29029157,2733.9,2733.4,3.65835]
[1740221803309,5.29029157,2733.9,2733.5,3.6583]
[1740221803490,5.29029157,2733.9,2733.6,0.1267]
[1740221804117,5.29029157,2733.9,2733.6,3.7848]
[1740221804324,5.29029157,2733.9,2733.6,0.871]
[1740221804523,5.29029157,2733.9,2733.7,3.65804]
[1740221804923,3.0,2734.0,2733.7,3.65804]
[1740221806668,11.12903,2734.5,2734.1,0.1267]
[1740221806669,12.76229157,2734.5,2734.1,0.1267]
[1740221806834,12.76229157,2734.5,2734.1,3.78412]
[1740221807038,12.76229157,2734.5,2734.1,0.1267]
[1740221807365,7.472,2734.5,2734.1,0.87088]
[1740221807671,7.472,2734.5,2734.4,3.6571]
[1740221807872,7.472,2734.5,2734.4,3.7838]
[1740221808839,5.29029157,2735.0,2734.6,3.65675]
[1740221809354,5.29029157,2735.0,2734.7,3.65669]
[1740221809556,5.29029157,2735.2,2734.7,3.65669]
[1740221811975,8.94633157,2735.2,2734.5,3.65692]
[1740221812127,8.94633157,2735.2,2734.6,0.378362]
[1740221812731,8.94633157,2735.2,2734.6,4.035192]
[1740221813027,3.65618,2735.1,2734.6,0.378362]
[1740221813262,8.94633157,2735.2,2734.6,4.035202]
[1740221814074,8.94633157,2735.2,2734.6,0.378362]
[1740221814370,8.94633157,2735.2,2734.6,4.035162]
[1740221815460,8.94633157,2735.2,2734.6,0.378362]
[1740221815683,12.60250157,2735.2,2734.6,0.378362]
[1740221815885,12.60250157,2735.2,2734.4,0.1267]
[1740221815886,8.94643157,2735.2,2734.4,0.1267]
[1740221816040,3.65639,2735.0,2734.4,0.1267]
[1740221816379,3.65639,2735.0,2734.4,3.78379]
[1740221816880,3.65639,2735.0,2734.4,7.44081]
[1740221817044,8.94643157,2735.2,2734.4,3.78372]
[1740221817378,0.97345316,2735.1,2734.5,3.65692]
[1740221818084,4.62970316,2735.1,2734.5,3.65692]
[1740221818451,8.94643157,2735.2,2734.5,3.65692]
[1740221819685,8.94643157,2735.2,2734.5,3.65686]
[1740221819978,3.65635,2735.0,2734.5,3.65686]
[1740221820885,3.65635,2735.0,2734.4,0.1267]
[1740221821073,7.31275,2735.0,2734.4,0.1267]
[1740221821600,3.65635,2735.0,2734.4,3.78373]
[1740221822086,8.94638157,2735.2,2734.4,4.527817]
[1740221822259,3.65618,2735.1,2734.5,3.65687]
[1740221822655,8.94638157,2735.2,2734.6,3.65676]
[1740221822860,8.94638157,2735.2,2734.7,0.1267]
[1740221823663,0.8164,2735.5,2734.7,0.1267]
[1740221823862,0.8164,2735.5,2734.1,5.583]
[1740221823863,5.29029157,2735.6,2735.1,3.65608]
[1740221824080,3.65549,2735.7,2735.4,0.1267]
[1740221824081,3.65541,2735.7,2735.4,0.1267]
[1740221824264,5.29738016,2735.6,2735.1,0.1267]
[1740221824589,3.65541,2735.7,2735.1,0.1267]
[1740221824748,3.65541,2735.7,2735.1,3.78279]
[1740221825178,3.65541,2735.7,2735.1,7.43886]
[1740221826290,3.65541,2735.7,2735.1,3.78277]
[1740221829498,7.31087,2735.7,2735.1,3.78277]
[1740221829652,3.65541,2735.7,2735.1,3.78277]
[1740221830196,7.31087,2735.7,2735.1,3.78277]
[1740221830595,3.65586,2735.4,2735.1,0.1267]
[1740221830797,3.65603,2735.2,2734.7,0.1267]
[1740221831300,8.07706,2735.4,2734.7,3.78332]
[1740221831601,3.65593,2735.3,2734.7,3.78332]
[1740221831957,3.65593,2735.3,2734.8,3.65657]
[1740221832695,4.42117,2735.4,2734.8,3.65657]
[1740221832854,3.65592,2735.3,2734.8,3.65649]
[1740221833289,8.07707,2735.4,2734.8,3.65649]
[1740221834306,3.65599,2735.3,2734.7,3.78337]
[1740221835701,3.65599,2735.3,2734.7,0.1267]
[1740221836062,3.65599,2735.3,2734.7,3.78338]
[1740221838015,3.65605,2735.2,2734.7,3.78338]
[1740221838320,3.65599,2735.3,2734.7,3.78338]
[1740221839020,3.65599,2735.3,2734.8,3.65655]
[1740221839201,3.65599,2735.3,2734.7,0.1267]
[1740221839202,3.65617,2735.1,2734.7,0.1267]
[1740221839507,3.65617,2735.1,2734.4,3.65702]
[1740221839508,3.65631,2735.0,2734.5,0.1267]
[1740221840394,8.94642157,2735.2,2734.5,0.1267]
[1740221840622,8.94642157,2735.2,2734.6,7.31368]
[1740221840783,10.32742063,2735.2,2734.6,3.65684]
[1740221841598,3.6562,2735.1,2734.6,3.65684]
[1740221846432,3.6562,2735.1,2734.6,3.65676]
[1740221846638,3.6562,2735.1,2734.6,7.31351]
[1740221846792,8.94634157,2735.2,2734.6,3.65675]
[1740221847000,10.32732763,2735.2,2734.6,7.31349]
[1740221847314,10.32732763,2735.2,2734.6,3.65674]
[1740221847717,6.67127763,2735.2,2734.7,3.65664]
[1740221847913,6.67127763,2735.2,2735.0,3.65628]
[1740221848112,6.67127763,2735.2,2734.5,0.1267]
[1740221848113,5.29029157,2735.2,2735.1,0.1267]
[1740221848311,5.29029157,2735.5,2735.1,3.78287]
[1740221849142,5.29029157,2735.5,2735.1,0.1267]
[1740221851208,5.29029157,2735.5,2735.2,3.65595]
[1740221851847,5.29029157,2735.5,2735.3,3.65582]
[1740221852016,5.29029157,2735.5,2735.4,3.65577]
[1740221852248,5.29029157,2735.5,2735.4,0.1267]
[1740221852564,10.473,2735.8,2735.4,0.1267]
[1740221852772,1.41281,2735.7,2735.4,0.1267]
[1740221854834,7.473,2735.8,2735.6,3.65538]
[1740221857781,7.473,2735.8,2735.4,7.43811]
[1740221858155,7.473,2735.8,2735.5,3.65562]
[1740221859176,7.473,2735.8,2735.4,3.78239]
[1740221859377,7.473,2735.8,2735.5,3.65563]
[1740221859575,7.473,2735.8,2735.7,3.65537]
[1740221859787,7.473,2735.8,2735.7,3.78207]
[1740221860581,7.43798,2736.5,2735.7,0.1267]
[1740221860582,6.07389157,2736.5,2735.7,0.1267]
[1740221860788,6.07389157,2736.5,2736.0,3.65486]
[1740221861282,5.29029157,2736.5,2736.2,3.6547]
[1740221861644,3.65452,2736.4,2736.1,0.1267]
[1740221861879,3.65452,2736.4,2735.9,0.1267]
[1740221862043,7.30908,2736.4,2735.9,0.1267]
[1740221862249,0.789,2736.3,2735.7,0.1267]
[1740221862463,0.789,2736.3,2735.8,3.65516]
[1740221862677,0.789,2736.3,2735.8,7.31031]
[1740221862876,0.789,2736.3,2735.8,3.65515]
[1740221864384,6.07929157,2736.5,2736.0,3.65491]
[1740221864562,5.29029157,2736.5,2736.1,0.1267]
[1740221865082,3.65416,2736.6,2736.1,3.78153]
[1740221865083,3.65421,2736.6,2736.1,3.78153]
[1740221865278,3.65421,2736.6,2736.1,0.1267]
[1740221866398,6.65415,2736.7,2736.1,0.1267]
[1740221866561,6.65412,2736.7,2736.1,3.7815]
[1740221866763,6.65412,2736.7,2736.1,4.525153]
[1740221866979,6.65412,2736.7,2736.1,8.179893]
[1740221867462,6.65412,2736.7,2736.1,8.179803]
[1740221867654,6.65412,2736.7,2736.2,3.65466]
[1740221867854,3.0,2736.7,2736.1,4.525063]
[1740221868057,5.29029157,2736.8,2736.3,3.65454]
[1740221868254,5.29029157,2736.8,2736.4,0.1267]
[1740221868671,5.29029157,2736.8,2736.4,3.78109]
[1740221869177,5.29029157,2736.8,2736.4,0.1267]
[1740221869492,8.94427157,2736.8,2736.4,0.1267]
[1740221870989,3.65404,2736.7,2736.4,0.1267]
[1740221872000,3.65418,2736.6,2736.4,0.1267]
[1740221872301,3.65418,2736.6,2735.9,3.78179]
[1740221872302,3.6544,2736.5,2735.9,3.78179]
[1740221872480,3.6544,2736.5,2736.0,0.743696]
[1740221873085,4.42828,2736.6,2736.0,0.743696]
[1740221873291,3.65448,2736.4,2736.0,0.743696]
[1740221875401,4.42828,2736.6,2736.0,0.743696]
[1740221875568,3.65431,2736.5,2736.0,4.398626]
[1740221875769,4.42828,2736.6,2736.0,4.398626]
[1740221875970,4.42828,2736.6,2736.1,3.65483]
[1740221876169,4.42828,2736.6,2736.0,4.398626]
[1740221876372,3.65418,2736.6,2736.0,4.398626]
[1740221877308,3.65418,2736.6,2736.0,4.398586]
[1740221877709,3.65405,2736.7,2736.1,3.78143]
[1740221878209,3.65405,2736.7,2736.2,3.6547]
[1740221878453,8.94424157,2736.8,2736.1,3.78143]
[1740221878717,10.28144273,2736.8,2736.2,3.65466]
[1740221878865,10.28144273,2736.8,2736.2,3.64980552]
[1740221879397,6.62749273,2736.8,2736.1,0.1267]
[1740221879573,6.62749273,2736.8,2736.2,3.65465]
[1740221879912,3.65404,2736.7,2736.2,3.65465]
[1740221880068,1.10556327,2736.7,2736.2,3.65465]
[1740221880498,1.10556327,2736.7,2736.4,3.65439]
[1740221881570,5.29029157,2736.8,2736.2,3.65462]
[1740221881902,5.29029157,2736.8,2736.2,7.3092]
[1740221882420,5.29029157,2736.8,2736.2,3.65458]
[1740221882639,5.29029157,2736.8,2736.4,3.65435]
[1740221885022,5.29029157,2736.8,2736.5,3.65427]
[1740221885190,0.7741,2736.9,2736.5,3.65427]
[1740221885390,0.7741,2736.9,2736.4,3.65435]
[1740221885616,0.7741,2736.9,2736.5,3.65428]
[1740221887633,0.7741,2736.9,2736.5,3.78098]
[1740221889318,5.29029157,2737.1,2736.8,3.65382]
[1740221890831,5.29029157,2737.1,2737.0,3.65363]
[1740221891029,8.2537,2737.4,2736.9,3.65365]
[1740221891331,8.2537,2737.4,2737.0,3.65363]
[1740221891714,8.2537,2737.4,2737.2,3.65328]
[1740221891920,7.466,2737.4,2737.2,3.65328]
[1740221892893,11.11914,2737.4,2736.6,0.1267]
[1740221893099,11.94451,2737.4,2736.8,3.6538]
[1740221893325,11.94451,2737.4,2736.8,7.3076]
[1740221893513,11.94451,2737.4,2736.8,3.6538]
[1740221893913,11.94451,2737.4,2736.9,3.65375]
[1740221894115,1.194451,2737.3,2736.9,3.65375]
[1740221896546,4.47851,2737.4,2736.9,3.65375]
[1740221897748,0.82537,2737.4,2737.0,3.65362]
[1740221898469,0.7877,2737.6,2737.1,3.65341]
[1740221898638,0.7877,2737.6,2737.3,3.65314]
[1740221899019,0.7877,2737.6,2737.1,3.7802]
[1740221899252,0.7877,2737.6,2737.1,0.1267]
[1740221899557,3.65308,2737.5,2736.9,3.78038]
[1740221899851,4.99148216,2737.5,2736.9,3.78038]
[1740221900018,3.6531,2737.4,2736.9,3.78038]
[1740221900847,1.33840216,2737.5,2736.9,3.78038]
[1740221901051,4.99137216,2737.5,2736.9,3.78038]
[1740221901252,4.99137216,2737.5,2737.0,3.65362]
[1740221903671,4.99137216,2737.5,2736.9,0.1267]
[1740221903827,4.99137216,2737.5,2736.8,3.65381]
[1740221903828,3.65313,2737.4,2736.8,3.65381]
[1740221904265,1.33840216,2737.5,2736.9,3.65375]
[1740221904774,3.65315,2737.4,2736.9,3.65375]
[1740221905260,4.99137216,2737.5,2736.9,3.65375]
[1740221905471,8.64446216,2737.5,2736.9,3.65375]
[1740221906344,3.65312,2737.4,2736.9,3.65375]
[1740221906667,4.99137216,2737.5,2736.9,3.65375]
[1740221907556,4.99137216,2737.5,2736.9,3.65368]
[1740221907964,8.64441216,2737.5,2736.9,3.65368]
[1740221908261,4.99137216,2737.5,2736.9,3.65368]
[1740221908618,3.65318,2737.4,2736.9,3.65368]
[1740221908824,4.99137216,2737.5,2737.0,3.65362]
[1740221909122,4.99137216,2737.5,2736.9,3.65368]
[1740221910815,0.57790722,2737.4,2736.9,3.65368]
[1740221913613,0.57790722,2737.4,2736.9,3.65366]
[1740221914332,3.65325,2737.3,2736.8,3.65389]
[1740221914690,3.65325,2737.3,2736.7,3.78064]
[1740221915031,4.57550294,2737.3,2736.8,3.65385]
[1740221916393,0.781,2737.2,2736.8,3.65385]
[1740221921905,0.781,2737.2,2736.8,3.65382]
[1740221924546,3.65382,2736.9,2736.4,0.1267]
[1740221924709,3.65366,2737.0,2736.4,3.78102]
[1740221924908,4.462476,2737.0,2736.4,3.78102]
[1740221925405,4.462476,2737.0,2736.6,3.65409]
[1740221925406,0.808816,2737.0,2736.6,3.65409]
[1740221925610,4.43449,2737.2,2736.6,3.65407]
[1740221926014,4.43449,2737.2,2736.6,3.65408]
[1740221926449,3.65351,2737.1,2736.5,3.6543]
[1740221926611,3.65351,2737.1,2736.6,3.65416]
[1740221927667,3.65351,2737.1,2736.5,3.65421]
[1740221927821,0.443451,2737.0,2736.5,3.65421]
[1740221929138,3.65365,2737.0,2736.5,3.65421]
[1740221929543,0.781,2737.2,2736.4,0.1267]
[1740221929544,4.43443,2737.2,2736.4,0.1267]
[1740221929738,4.43443,2737.2,2736.6,3.65414]
[1740221929977,3.6535,2737.1,2736.6,3.65414]
[1740221930261,3.65365,2737.0,2736.4,3.78113]
[1740221930426,4.62921984,2737.1,2736.4,3.78105]
[1740221930629,3.65365,2737.0,2736.4,7.4354]
[1740221930953,0.97570984,2737.1,2736.5,3.6542]
[1740221931465,4.62921984,2737.1,2736.5,3.6542]
[1740221931668,4.62921984,2737.1,2736.6,3.65409]
[1740221931669,0.97570984,2737.1,2736.6,3.65409]
[1740221931834,0.781,2737.2,2736.9,3.6537]
[1740221932036,0.781,2737.2,2736.7,3.78073]
[1740221932440,0.781,2737.2,2736.8,3.65387]
[1740221932625,0.781,2737.2,2736.8,3.65385]
[1740221932834,0.781,2737.2,2736.7,3.7807]
[1740221934470,3.65361,2737.1,2736.5,3.78088]
[1740221934639,3.65361,2737.1,2736.5,7.4351]
[1740221935767,1.224417,2737.2,2736.7,3.654]
[1740221935768,0.781,2737.2,2736.7,3.654]
[1740221936352,4.43444,2737.2,2736.7,3.654]
[1740221943036,0.781,2737.2,2736.7,3.65396]
[1740221943676,4.43441,2737.2,2736.7,3.65396]
[1740221944380,5.243161,2737.2,2736.7,3.65396]
[1740221944782,1.589751,2737.2,2736.7,3.65396]
[1740221944963,0.781,2737.2,2737.0,3.65362]
[1740221945280,0.781,2737.2,2737.1,3.6535]
[1740221945845,0.7987,2737.4,2737.1,3.6535]
[1740221946181,0.7987,2737.4,2736.7,3.65395]
[1740221946182,3.65331,2737.3,2736.7,3.65395]
[1740221946649,0.7987,2737.2,2736.5,3.65424]
[1740221946855,3.65362,2737.1,2736.5,3.65424]
[1740221947041,4.45218,2737.2,2736.5,3.6542]
[1740221947243,4.098828,2737.1,2736.5,3.6542]
[1740221948083,4.098828,2737.1,2736.5,3.65418]
[1740221948689,0.7987,2737.0,2736.5,7.3084]
[1740221949166,0.7987,2737.0,2736.5,3.65418]
[1740221949885,0.7987,2737.0,2736.5,7.30838]
[1740221950244,0.7987,2737.0,2736.7,3.65401]
[1740221951046,0.7987,2737.0,2736.7,3.65394]
[1740221951443,3.65329,2737.3,2737.0,3.65363]
[1740221951444,0.7987,2737.3,2737.0,3.65363]
[1740221952259,5.32,2737.5,2737.2,3.65336]
[1740221952545,6.1187,2737.5,2737.1,3.65347]
[1740221952744,6.1187,2737.5,2737.2,3.65329]
[1740221954970,5.32,2737.5,2737.4,3.6531]
[1740221955885,8.2627,2737.9,2737.4,3.6531]
[1740221956185,8.2627,2737.9,2737.4,3.65301]
[1740221956363,8.2627,2737.9,2737.5,3.65288]
[1740221957985,8.25546549,2737.9,2737.5,3.65288]
[1740221958191,8.25546549,2737.9,2737.3,3.65311]
[1740221958355,8.25546549,2737.9,2737.4,3.65308]
[1740221958556,0.7987,2737.9,2737.4,3.65308]
[1740221958850,0.7987,2737.9,2737.3,4.031091]
[1740221959186,4.45117,2737.9,2737.3,4.031091]
[1740221959385,0.7987,2737.9,2737.4,3.65302]
[1740221959692,0.7987,2737.9,2737.4,4.24613116]
[1740221959900,0.7987,2737.4,2736.8,5.7777]
[1740221960057,4.45182,2737.4,2736.9,3.65365]
[1740221960395,3.65324,2737.3,2736.8,5.4967]
[1740221960793,0.7987,2737.4,2736.8,5.4967]
[1740221960960,3.65345,2737.2,2736.8,5.37]
[1740221961290,0.7886,2737.1,2736.6,3.65412]
[1740221961468,0.7886,2737.1,2736.5,4.06188]
[1740221961997,3.65364,2737.0,2736.5,3.78088]
[1740221962155,0.7886,2737.1,2736.6,3.65413]
[1740221963367,4.44218,2737.1,2736.4,3.65434]
[1740221963586,3.65367,2737.0,2736.5,0.743553]
[1740221964253,0.7886,2737.1,2736.6,3.65413]
[1740221964451,0.7886,2737.1,2736.8,3.65387]
[1740221964652,0.7886,2737.1,2736.7,3.65392]
[1740221964897,0.7886,2737.1,2736.7,3.78062]
[1740221965506,0.766,2737.3,2736.7,0.5791173]
[1740221965664,0.766,2737.3,2736.7,0.1267]
[1740221965995,0.766,2737.3,2736.9,3.65368]
[1740221966502,0.766,2737.3,2736.8,3.6539]
[1740221966701,0.766,2737.3,2737.0,3.65358]
[1740221967103,0.766,2737.3,2737.1,3.65345]
[1740221967775,0.766,2737.3,2736.9,7.30742]
[1740221967981,0.766,2737.3,2736.9,3.65367]
[1740221968569,0.766,2737.3,2737.1,3.65349]
[1740221969771,0.766,2737.3,2737.2,3.65336]
[1740221969967,6.086,2737.6,2737.3,3.65313]
[1740221970171,6.086,2737.6,2737.2,0.730685]
[1740221970372,6.086,2737.6,2737.4,3.65298]
[1740221970600,0.766,2737.6,2737.4,7.306]
[1740221970768,0.766,2737.6,2737.4,3.65298]
[1740221971213,0.766,2737.6,2737.2,3.6533]
[1740221971589,0.766,2737.6,2737.2,4.396656]
[1740221971772,0.766,2737.6,2737.4,3.65301]
[1740221973311,0.766,2737.9,2737.5,3.65296]
[1740221973509,0.766,2737.9,2737.5,3.65293]
[1740221974507,0.766,2737.9,2737.5,3.65289]
[1740221975915,0.766,2737.9,2737.3,3.65315]
[1740221976144,4.41854,2737.9,2737.3,7.3063]
[1740221977210,4.41854,2737.9,2737.4,3.65303]
[1740221977723,0.766,2737.9,2737.4,3.65303]
[1740221980827,0.766,2737.9,2737.3,0.1267]
[1740221981229,0.7512,2738.1,2737.8,3.65256]
[1740221981397,0.7512,2738.1,2737.6,3.65275]
[1740221981601,7.463,2738.2,2737.8,0.1267]
[1740221981934,7.463,2738.2,2738.1,3.65216]
[1740221982090,7.463,2738.2,2738.0,3.65221]
[1740221982733,0.7512,2738.3,2738.0,3.65221]
[1740221983225,4.40317,2738.3,2737.8,3.65249]
[1740221983431,0.7512,2738.2,2737.6,3.65274]
[1740221983756,0.7512,2738.2,2737.6,4.0453817]
[1740221984432,0.7512,2738.2,2737.8,3.65253]
[1740221986591,0.7512,2738.2,2737.7,3.65269]
[1740221988119,0.7512,2738.2,2737.8,3.65255]
[1740221988324,0.7512,2738.2,2737.8,3.65248]
[1740221991731,0.7512,2738.2,2737.4,0.1267]
[1740221991732,3.65254,2737.9,2737.4,3.65301]
[1740221991945,4.45547,2738.0,2737.4,3.65301]
[1740221992120,3.65243,2737.9,2737.2,3.93433]
[1740221992327,0.8031,2737.6,2736.9,0.281]
[1740221992526,0.8031,2737.6,2737.0,3.65355]
[1740221992724,3.65299,2737.5,2736.9,0.687148]
[1740221993042,3.65299,2737.5,2736.9,4.059808]
[1740221993509,4.4562,2737.4,2736.8,3.65382]
[1740221993711,4.4562,2737.4,2736.6,3.65411]
[1740221993712,0.8031,2737.2,2736.6,3.65411]
[1740221994029,0.8031,2737.2,2736.7,3.65393]
[1740221994531,0.8031,2737.2,2736.6,3.65411]
[1740221995295,0.8031,2737.2,2736.8,3.6538]
[1740221995530,0.8031,2737.2,2736.8,4.384591]
[1740221995914,0.8031,2737.2,2737.1,3.6535]
[1740221996106,0.8031,2737.2,2737.0,3.65363]
[1740221996107,0.8031,2737.5,2737.2,3.65334]
[1740221996301,0.8031,2737.5,2737.4,3.6531]
[1740221996506,5.32,2737.6,2737.4,3.6531]
[1740221996940,0.8031,2737.7,2737.6,3.65283]
[1740221997126,0.8031,2738.0,2737.5,3.65296]
[1740221997331,0.8031,2738.0,2737.5,7.30582]
[1740221997642,0.8031,2738.0,2737.4,0.36531]
[1740221997825,4.4554,2738.0,2737.3,3.65313]
[1740221998027,0.8031,2738.0,2737.5,3.65295]
[1740221998676,0.8031,2738.0,2737.5,7.30583]
[1740221998835,0.8031,2738.0,2737.5,3.65288]
[1740221999036,0.8031,2738.0,2737.7,3.65269]
[1740222000248,0.8031,2738.0,2737.7,7.3053]
[1740222000421,0.8031,2738.0,2737.7,3.65261]
[1740222000832,0.8031,2738.0,2737.8,3.65255]
[1740222001520,0.8031,2738.0,2737.6,3.65281]
[1740222001731,0.8031,2738.0,2737.4,3.65304]
[1740222001927,4.45543,2738.0,2737.4,3.65304]
[1740222002347,4.45543,2738.0,2737.5,3.65295]
[1740222002942,4.45543,2738.0,2737.6,3.65282]
[1740222002943,0.8031,2738.0,2737.6,3.65282]
[1740222003136,0.8031,2738.0,2737.4,3.65301]
[1740222003738,0.8031,2738.0,2737.5,3.65295]
[1740222004276,0.8031,2738.0,2737.6,3.65283]
[1740222004475,0.8031,2738.0,2737.7,3.65259]
[1740222005171,0.8031,2738.0,2737.9,3.65243]
[1740222005375,0.781,2738.2,2737.9,3.65243]
[1740222005749,0.781,2738.2,2737.6,3.65276]
[1740222005931,3.6522,2738.1,2737.6,3.65272]
[1740222006138,0.781,2738.2,2737.6,3.65271]
[1740222006337,3.65219,2738.1,2737.6,3.65271]
[1740222006863,1.756293,2738.2,2737.6,3.65271]
[1740222007062,5.408373,2738.2,2737.6,3.65271]
[1740222007475,1.756293,2738.2,2737.6,3.65271]
[1740222007658,0.781,2737.6,2737.0,9.02355]
[1740222007977,0.781,2737.6,2737.2,3.65329]
[1740222008274,0.781,2737.6,2737.0,8.222165]
[1740222008777,0.781,2737.6,2737.0,8.222125]
[1740222008945,0.781,2737.6,2737.1,3.65345]
[1740222009146,0.781,2737.6,2737.2,3.65334]
[1740222009353,3.0857,2737.6,2737.2,3.65334]
[1740222010450,3.0857,2737.6,2737.3,3.65321]
[1740222011041,2.3047,2737.6,2737.5,3.65296]
[1740222011283,2.3047,2737.6,2737.5,4.018256]
[1740222011769,2.3047,2737.6,2737.5,0.365296]
[1740222012081,2.3047,2737.6,2737.5,3.65296]
[1740222014886,2.3047,2737.6,2737.4,3.65309]
[1740222015059,2.3047,2737.6,2737.5,3.65296]
[1740222016245,2.3047,2737.6,2737.5,6.77966]
[1740222017361,2.3047,2737.6,2737.5,7.05329935]
[1740222017574,2.3047,2737.6,2737.5,8.12393829]
[1740222018299,2.3047,2737.6,2737.5,8.40493829]
[1740222021701,2.3047,2737.6,2737.5,13.77493829]
[1740222024295,2.3047,2737.6,2737.5,10.64823829]
[1740222024459,2.3047,2737.6,2737.5,9.57759935]
[1740222024659,2.2973942,2737.6,2737.5,9.30396]
[1740222025274,0.781,2738.1,2737.5,9.30396]
[1740222025477,0.781,2738.1,2737.7,3.65268]
[1740222026520,1.224304,2738.1,2737.3,3.65319]
[1740222026725,4.44049,2737.7,2737.1,3.6534]
[1740222027279,4.4404,2737.7,2737.1,3.6534]
[1740222027614,0.7877,2737.7,2737.2,3.65335]
[1740222027978,0.7877,2737.7,2737.3,3.65314]
[1740222029744,0.7877,2737.7,2737.1,7.30683]
[1740222029898,0.7877,2737.7,2737.1,4.949073]
[1740222030105,0.7877,2737.7,2737.2,3.65333]
[1740222030846,0.7877,2737.7,2737.5,3.65295]
[1740222030847,3.0851,2737.7,2737.5,3.65295]
[1740222031118,3.0851,2737.7,2737.6,3.65283]
[1740222031945,2.2974,2737.7,2737.6,3.65283]
[1740222032221,2.2974,2737.7,2737.6,4.05905616]
[1740222033040,2.2974,2737.7,2737.6,3.65283]
[1740222033239,0.7877,2737.6,2737.1,3.6535]
[1740222033601,0.7877,2737.6,2737.3,3.65315]
[1740222034232,0.7877,2737.6,2737.4,3.6531]
[1740222034533,0.7877,2737.6,2737.5,3.65296]
[1740222036299,2.2974,2737.7,2737.6,3.65283]
[1740222039553,0.7877,2737.6,2737.5,3.65296]
[1740222040344,0.7877,2737.6,2737.4,3.65302]
[1740222041430,0.7877,2737.6,2737.3,3.65316]
[1740222041657,0.7877,2737.6,2737.3,3.65313]
[1740222042067,0.7877,2737.6,2737.0,0.28]
[1740222042218,0.7877,2737.6,2737.2,3.65335]
[1740222043141,0.7877,2737.6,2737.1,4.23106]
[1740222043344,3.6534,2737.2,2736.7,3.65394]
[1740222043551,0.8275,2737.1,2736.5,3.65427]
[1740222043914,4.48149,2736.8,2736.2,3.65469]
[1740222044067,0.8275,2736.8,2736.2,3.65469]
[1740222044254,0.8275,2736.8,2736.3,3.65447]
[1740222044768,3.65405,2736.7,2736.1,3.65474]
[1740222044928,0.8275,2736.6,2736.1,3.65474]
[1740222045265,0.8275,2736.6,2736.2,3.65469]
[1740222047167,3.65438,2736.5,2735.8,3.65518]
[1740222047326,4.47775,2736.4,2735.8,3.65518]
[1740222047687,0.8233,2736.3,2735.8,3.65518]
[1740222048058,0.8233,2736.3,2735.9,3.6551]
[1740222048489,0.8233,2736.3,2736.0,3.65495]
[1740222049388,0.8233,2736.3,2735.9,3.6551]
[1740222049590,0.8233,2736.3,2736.0,3.65491]
[1740222051796,0.8233,2736.3,2736.0,3.65486]
[1740222051948,0.8233,2736.3,2735.8,3.65515]
[1740222052148,0.8233,2736.2,2735.8,3.65515]
[1740222052758,0.8233,2736.2,2735.5,3.65555]
[1740222052982,4.47822,2736.1,2735.5,3.65555]
[1740222053181,0.8233,2736.0,2735.5,3.65555]
[1740222054304,3.65498,2736.0,2735.5,3.65555]
[1740222054511,0.8233,2735.9,2735.5,3.65555]
[1740222055999,0.8233,2735.9,2735.3,3.65587]
[1740222056199,0.8233,2735.9,2735.4,3.65576]
[1740222057067,0.8233,2735.8,2735.1,3.65607]
[1740222057398,0.8233,2735.6,2735.1,3.65607]
[1740222057961,0.8233,2735.6,2735.0,3.65618]
[1740222058187,0.8233,2735.6,2735.2,3.65603]
[1740222058558,0.8233,2735.6,2735.3,3.6559]
[1740222058759,0.8233,2735.6,2735.2,3.65603]
[1740222058999,0.8233,2735.6,2735.2,7.31198]
[1740222059199,0.8233,2735.6,2735.2,3.65595]
[1740222059594,0.8233,2735.6,2735.2,7.3119]
[1740222059969,0.8233,2735.6,2735.2,3.65595]
[1740222060907,0.8233,2735.6,2735.3,3.65581]
[1740222061403,0.8233,2735.6,2735.4,3.65568]
[1740222061608,0.754,2735.9,2735.7,3.65525]
[1740222061910,0.754,2735.9,2735.6,3.65542]
[1740222062275,0.754,2735.9,2735.6,3.65541]
[1740222062786,0.754,2735.9,2735.6,7.31081]
[1740222062987,0.754,2735.9,2735.4,3.65567]
[1740222063620,0.754,2735.9,2735.6,3.65538]
[1740222063992,0.754,2735.9,2735.8,3.65523]
[1740222064194,0.754,2736.4,2736.3,3.65457]
[1740222064784,0.754,2736.6,2736.0,3.78163]
[1740222064979,0.754,2736.6,2736.5,3.6543]
[1740222065392,5.32,2736.7,2736.6,3.65416]
[1740222065606,0.7537,2736.8,2736.6,3.65416]
[1740222065809,0.7537,2737.3,2736.9,3.65371]
[1740222066123,0.7537,2737.3,2736.7,3.65403]
[1740222066449,0.7537,2737.3,2736.7,3.65393]
[1740222068321,0.7537,2737.3,2736.8,3.65383]
[1740222068487,0.7537,2737.3,2736.7,3.65393]
[1740222068683,0.60737,2737.2,2736.7,3.65393]
[1740222068892,3.65381,2736.9,2736.3,3.65452]
[1740222069098,4.4076,2736.8,2736.1,7.30955]
[1740222069294,4.4076,2736.8,2736.2,3.65469]
[1740222069509,0.7537,2736.8,2736.2,3.65469]
[1740222070013,0.7537,2736.8,2736.6,3.65415]
[1740222070221,0.7537,2736.8,2736.4,3.65443]
[1740222070543,0.7537,2736.8,2736.2,4.385603]
[1740222070740,0.7537,2736.8,2736.3,3.65455]
[1740222071034,0.7537,2736.8,2736.2,4.385603]
[1740222071197,0.7537,2736.8,2736.2,3.65466]